bitfinex-derivatives/quotes_SOLF0:USTF0_20250413
["timestamp","ask_amount","ask_price","bid_price","bid_amount"]
[1744520984947,0.05576381,130.14,130.12,7.74057004]
[1744520985142,0.05576381,130.14,130.12,0.05337004]
[1744520986446,7.6867,130.13,130.12,0.05337004]
[1744520986745,0.05576381,130.14,130.12,0.05337004]
[1744520989850,7.74196381,130.14,130.12,0.05337004]
[1744520990048,0.05576381,130.14,130.12,0.05337004]
[1744520991047,7.6867,130.13,130.12,0.05337004]
[1744520991247,7.6867,130.13,130.1,30.92]
[1744520991248,54.997539,130.13,130.05,5.4263]
[1744520991448,55.831939,130.13,130.04,33.5486]
[1744520991649,55.831939,130.13,130.04,30.94]
[1744520992050,16.377539,130.1,130.04,30.94]
[1744520992251,7.6912,130.06,130.04,30.94]
[1744520992653,7.74676093,130.06,130.04,30.94]
[1744520993256,0.05556093,130.06,130.04,30.94]
[1744520993854,7.74666093,130.06,130.04,30.94]
[1744520994255,0.05556093,130.06,130.04,30.94]
[1744520996058,7.74646093,130.06,130.04,30.94]
[1744520996255,0.05556093,130.06,130.04,30.94]
[1744520996659,0.05556093,130.06,130.01,30.94]
[1744520998155,7.693,130.03,130.01,30.94]
[1744520998360,30.94,130.09,130.01,30.94]
[1744520998853,0.05358192,130.06,129.97,33.749]
[1744520999054,16.377539,130.07,129.97,33.749]
[1744520999358,0.05416122,130.03,129.97,33.749]
[1744521000056,0.05416122,130.03,129.99,7.6945]
[1744521000561,0.05416122,130.03,129.97,33.749]
[1744521001156,0.05416122,130.03,129.99,7.6945]
[1744521001760,7.74686122,130.03,129.99,7.6945]
[1744521002161,0.05416122,130.03,129.97,33.749]
[1744521002361,7.6938,130.01,129.97,33.749]
[1744521002759,7.6912,130.06,129.99,16.377539]
[1744521002966,7.6912,130.06,130.0,2.6143]
[1744521003262,7.6912,130.06,130.02,7.6929]
[1744521003858,0.05331139,130.05,130.03,0.0504813]
[1744521004561,0.05331139,130.05,130.03,7.7427813]
[1744521004862,364.0,130.12,130.03,0.0504813]
[1744521005057,30.94,130.13,130.02,16.377539]
[1744521005659,7.69,130.08,130.02,16.377539]
[1744521005861,30.94,130.13,130.03,2.5905]
[1744521006059,8.2487,130.15,130.05,16.377539]
[1744521006262,0.04992404,130.09,130.08,7.6892]
[1744521006461,7.6871,130.13,130.08,7.6892]
[1744521006657,0.0510893,130.1,130.07,0.05166544]
[1744521007363,0.0510893,130.1,130.09,7.6891]
[1744521007762,7.6859,130.15,130.07,0.05166544]
[1744521008066,71.46882932,130.18,130.06,33.5523]
[1744521008567,71.46882932,130.18,130.08,16.377539]
[1744521009070,0.05349759,130.14,130.12,0.05229915]
[1744521009262,7.6854,130.16,130.12,30.99229915]
[1744521009468,0.05534114,130.14,130.12,30.99229915]
[1744521009968,0.05534114,130.14,130.12,38.67949915]
[1744521010568,0.05534114,130.14,130.12,30.99229915]
[1744521011069,0.05534114,130.14,130.12,38.67949915]
[1744521011268,0.05534114,130.14,130.12,30.99229915]
[1744521012069,0.05534114,130.14,130.12,0.05229915]
[1744521012566,7.74154114,130.14,130.12,0.05229915]
[1744521012763,0.05534114,130.14,130.12,0.05229915]
[1744521013766,0.05534114,130.14,130.12,7.73959915]
[1744521014062,0.05534114,130.14,130.12,0.05229915]
[1744521014769,0.05534114,130.14,130.06,30.94]
[1744521014963,16.377539,130.15,130.06,30.94]
[1744521015162,31.42,130.14,130.06,30.94]
[1744521015562,7.6879,130.11,130.06,38.6305]
[1744521015765,7.6879,130.11,130.06,30.94]
[1744521015966,0.05525165,130.1,130.07,0.05061642]
[1744521018670,7.74385165,130.1,130.07,0.05061642]
[1744521018871,0.05525165,130.1,130.07,0.05061642]
[1744521021272,0.05525165,130.1,130.07,31.47061642]
[1744521021467,7.74375165,130.1,130.07,31.47061642]
[1744521023575,0.05525165,130.1,130.07,31.47061642]
[1744521024476,0.05525165,130.1,130.08,7.6891]
[1744521025674,0.05525165,130.1,130.09,7.6891]
[1744521026267,0.05525165,130.1,130.07,0.05061642]
[1744521027475,7.74405165,130.1,130.07,0.05061642]
[1744521027671,0.05525165,130.1,130.07,0.05061642]
[1744521028072,7.6895,130.09,130.07,0.05061642]
[1744521028274,0.05525165,130.1,130.07,0.05061642]
[1744521028876,7.74405165,130.1,130.07,0.05061642]
[1744521029078,0.05525165,130.1,130.07,0.05061642]
[1744521029471,0.05525165,130.1,130.08,39.1092]
[1744521029877,0.05525165,130.1,130.08,31.42]
[1744521030178,0.05525165,130.1,130.07,0.05061642]
[1744521030481,7.74405165,130.1,130.07,0.05061642]
[1744521031278,0.05525165,130.1,130.07,0.05061642]
[1744521031977,0.05525165,130.1,130.07,7.74081642]
[1744521032276,0.05525165,130.1,130.07,0.05061642]
[1744521032575,0.05525165,130.1,130.08,7.6892]
[1744521033170,0.05525165,130.1,130.07,0.05061642]
[1744521033683,7.74375165,130.1,130.07,0.05061642]
[1744521033881,0.05525165,130.1,130.07,0.05061642]
[1744521034385,0.05525165,130.1,130.07,7.74041642]
[1744521034983,0.05525165,130.1,130.08,7.6895]
[1744521035284,0.05525165,130.1,130.07,0.05061642]
[1744521035481,0.05525165,130.1,130.09,7.6891]
[1744521035677,0.05525165,130.1,130.09,39.1091]
[1744521035887,0.05525165,130.1,130.09,31.42]
[1744521046093,0.05525165,130.1,130.07,0.05061642]
[1744521046787,7.6897,130.08,130.07,0.05061642]
[1744521047889,7.6893,130.09,130.07,0.05061642]
[1744521048595,0.05525165,130.1,130.07,0.05061642]
[1744521049183,0.05525165,130.1,130.07,7.74081642]
[1744521049381,0.05525165,130.1,130.07,39.72081642]
[1744521049691,0.05525165,130.1,130.08,7.6895]
[1744521050292,0.05525165,130.1,130.09,7.6891]
[1744521061709,0.05525165,130.1,130.07,32.03061642]
[1744521062213,0.05525165,130.1,130.07,39.72061642]
[1744521063014,0.05525165,130.1,130.08,7.6896]
[1744521064415,0.05525165,130.1,130.07,39.72061642]
[1744521064619,0.05525165,130.1,130.07,32.03061642]
[1744521065115,0.05525165,130.1,130.08,7.6894]
[1744521071014,0.05525165,130.1,130.07,32.03061642]
[1744521071614,7.74405165,130.1,130.07,32.03061642]
[1744521073421,7.6897,130.08,130.07,0.05061642]
[1744521075324,7.6909,130.06,130.04,31.98]
[1744521076421,7.6915,130.05,130.04,32.03861295]
[1744521076727,0.04858923,130.06,130.04,32.03861295]
[1744521077027,7.73978923,130.06,130.04,32.03861295]
[1744521079828,7.6915,130.05,130.04,32.03861295]
[1744521080531,7.73968923,130.06,130.04,32.03861295]
[1744521080929,0.04858923,130.06,130.04,32.03861295]
[1744521081130,7.73978923,130.06,130.04,32.03861295]
[1744521081831,0.04858923,130.06,130.04,32.03861295]
[1744521082030,0.04858923,130.06,130.04,0.05861295]
[1744521082830,0.04858923,130.06,130.05,45.87383724]
[1744521083032,2.818,130.11,130.05,38.18233724]
[1744521083329,14.24993724,130.12,130.07,14.25203724]
[1744521083525,2.8098,130.13,130.09,6.56233724]
[1744521083726,14.25013724,130.12,130.07,6.56233724]
[1744521084033,6.56233724,130.1,130.05,38.18233724]
[1744521084232,6.56233724,130.1,130.08,0.04984092]
[1744521084531,0.05864404,130.11,130.08,7.73914092]
[1744521085034,0.05864404,130.11,130.08,0.04984092]
[1744521086135,0.05864404,130.11,130.08,7.73934092]
[1744521086434,0.05864404,130.11,130.08,0.04984092]
[1744521086826,10.30554558,130.11,130.08,0.04984092]
[1744521088035,7.6891,130.09,130.08,0.04984092]
[1744521088335,7.6891,130.09,130.05,31.62]
[1744521088336,10.24690154,130.09,130.02,31.62]
[1744521088926,10.24690154,130.11,130.03,7.6926]
[1744521089224,10.24690154,130.11,130.06,0.05863237]
[1744521089225,0.05727685,130.08,130.06,0.05863237]
[1744521089431,7.74747685,130.08,130.06,0.05863237]
[1744521090347,0.05727685,130.08,130.06,0.05863237]
[1744521091433,7.6903,130.07,130.06,0.05863237]
[1744521092339,7.6929,130.03,129.99,31.62]
[1744521092539,10.24690154,130.05,129.99,31.62]
[1744521093634,0.04895214,130.03,129.99,31.62]
[1744521095040,7.6941,130.01,129.99,31.62]
[1744521096136,7.6935,130.02,129.99,31.62]
[1744521096542,7.6935,130.02,129.97,7.6962]
[1744521096743,7.6935,130.02,129.96,10.5051]
[1744521097243,0.0565346,130.0,129.96,10.5051]
[1744521097542,0.0565346,130.0,129.97,7.696]
[1744521098637,0.0565346,130.0,129.98,31.64]
[1744521099744,0.0565346,130.0,129.98,41.88690154]
[1744521100842,0.0565346,130.0,129.99,7.695]
[1744521101142,7.6916,130.05,129.98,41.88690154]
[1744521101544,7.6921,130.04,130.0,7.6938]
[1744521102346,0.04954351,130.03,130.01,0.05371588]
[1744521103448,0.04954351,130.03,130.01,7.74741588]
[1744521104453,0.04954351,130.03,130.01,0.05371588]
[1744521106848,10.29644505,130.03,130.01,0.05371588]
[1744521107250,14.26108693,130.02,130.01,0.05371588]
[1744521108651,6.56788693,130.02,130.01,0.05371588]
[1744521109253,7.74244351,130.03,130.01,0.05371588]
[1744521109254,0.04954351,130.03,130.01,0.05371588]
[1744521110255,0.04954351,130.03,130.01,7.74751588]
[1744521110452,0.04954351,130.03,130.02,31.3]
[1744521110954,0.04954351,130.03,130.02,38.9932]
[1744521111952,2.8186,130.08,130.02,38.9932]
[1744521112154,7.6908,130.07,130.02,38.9932]
[1744521112954,7.6909,130.06,130.02,38.9932]
[1744521113153,7.7468873,130.06,130.03,0.04916118]
[1744521114057,0.0559873,130.06,130.03,0.04916118]
[1744521114358,10.3136349,130.06,130.03,0.04916118]
[1744521115254,7.692,130.04,130.03,0.04916118]
[1744521118859,7.7470873,130.06,130.03,0.04916118]
[1744521119253,0.0559873,130.06,130.03,0.04916118]
[1744521119556,7.6915,130.05,130.03,0.04916118]
[1744521120954,7.7470873,130.06,130.03,0.04916118]
[1744521121962,7.6915,130.05,130.03,0.04916118]
[1744521128474,7.692,130.04,130.03,0.04916118]
[1744521128670,0.0559873,130.06,130.03,0.04916118]
[1744521128970,7.6917,130.05,130.03,0.04916118]
[1744521131470,6.5635811,130.04,129.99,32.6]
[1744521131672,6.5635811,130.02,129.99,32.6]
[1744521131979,14.2571811,130.02,129.99,32.6]
[1744521132177,7.6936,130.02,129.99,39.1635811]
[1744521132376,7.6936,130.02,129.99,32.6]
[1744521132880,7.75100103,130.02,129.99,32.65623323]
[1744521133081,6.62098213,130.02,129.99,0.05623323]
[1744521133281,6.5635811,130.0,129.99,0.05623323]
[1744521133481,6.5635811,130.0,129.93,39.1635811]
[1744521133675,6.5635811,129.98,129.93,39.1635811]
[1744521133876,14.2594811,129.98,129.93,46.8617811]
[1744521134284,7.6959,129.98,129.93,46.8617811]
[1744521134582,0.05111223,129.97,129.93,39.1635811]
[1744521134778,0.05111223,129.97,129.93,32.6]
[1744521135479,7.6976,129.95,129.93,32.6]
[1744521135982,10.32172936,129.97,129.9,9.08084685]
[1744521136283,0.04948299,129.95,129.9,9.08084685]
[1744521136884,0.04948299,129.95,129.89,46.25971501]
[1744521137775,0.04948299,129.95,129.91,7.6993]
[1744521138382,0.04948299,129.95,129.89,46.25971501]
[1744521138685,7.74708299,129.95,129.89,53.96051501]
[1744521138884,0.04948299,129.95,129.89,46.25971501]
[1744521139286,0.04948299,129.95,129.9,7.6999]
[1744521139589,0.04948299,129.95,129.89,46.25971501]
[1744521140185,10.27061713,129.94,129.89,3.38909788]
[1744521140386,2.8211,129.94,129.89,3.38909788]
[1744521141082,7.6999,129.91,129.89,3.38909788]
[1744521141284,2.8211,129.94,129.89,3.38909788]
[1744521141488,0.05728925,129.91,129.89,3.38909788]
[1744521141786,7.7003,129.9,129.89,3.38909788]
[1744521142186,0.05728925,129.91,129.83,32.62]
[1744521142187,7.7019,129.88,129.83,32.62]
[1744521142390,5.4716,129.9,129.83,32.62]
[1744521142581,0.05648973,129.87,129.83,42.89061713]
[1744521142782,0.05648973,129.87,129.83,50.59471713]
[1744521142982,0.05648973,129.87,129.83,42.89061713]
[1744521143183,0.05648973,129.87,129.83,50.59491713]
[1744521143383,0.05648973,129.87,129.83,42.89061713]
[1744521143885,0.05648973,129.87,129.83,32.62]
[1744521144284,0.05648973,129.87,129.81,15.82791713]
[1744521144285,7.7049,129.83,129.77,7.7076]
[1744521144491,32.62,129.86,129.76,10.27061713]
[1744521144691,0.05550476,129.81,129.8,10.27061713]
[1744521144994,38.0916,129.9,129.8,42.89061713]
[1744521145186,38.0916,129.9,129.82,10.27061713]
[1744521145386,5.4716,129.9,129.82,10.27061713]
[1744521145690,5.4716,129.9,129.84,10.27061713]
[1744521145884,0.05717739,129.88,129.86,0.05630869]
[1744521146082,0.05717739,129.88,129.86,10.32692582]
[1744521146587,7.6984,129.94,129.86,10.32692582]
[1744521146886,15.85851713,129.95,129.87,7.7016]
[1744521147094,7.6984,129.94,129.85,42.89061713]
[1744521147387,5.5879,129.95,129.9,7.7001]
[1744521147593,42.89061713,129.99,129.9,32.62]
[1744521147789,7.75077173,129.94,129.91,0.05184791]
[1744521147995,7.75077173,129.94,129.9,32.62]
[1744521148193,7.75077173,129.94,129.91,0.05555615]
[1744521148794,7.6986,129.93,129.91,0.05555615]
[1744521149293,7.6991,129.92,129.91,0.05555615]
[1744521150591,15.8065,129.93,129.91,0.05555615]
[1744521150894,8.1077,129.93,129.91,0.05555615]
[1744521151091,7.6991,129.92,129.91,0.05555615]
[1744521151295,8.1077,129.93,129.91,0.05555615]
[1744521151493,0.05277173,129.94,129.91,0.05555615]
[1744521151691,7.75087173,129.94,129.91,0.05555615]
[1744521153499,7.6988,129.93,129.91,0.05555615]
[1744521153794,0.05277173,129.94,129.91,0.05555615]
[1744521154098,7.6986,129.93,129.91,0.05555615]
[1744521154298,10.27061713,129.93,129.91,0.05555615]
[1744521154501,20.74511713,129.93,129.85,32.52]
[1744521154798,10.27061713,129.9,129.82,35.3239]
[1744521155694,0.04946221,129.87,129.85,0.04850874]
[1744521159504,0.04946221,129.87,129.86,32.52]
[1744521159898,0.04946221,129.87,129.86,40.2227]
[1744521160304,7.7001,129.91,129.86,32.52]
[1744521160706,34.48,129.9,129.69,381.01]
[1744521160901,10.27061713,129.86,129.74,10.27061713]
[1744521161101,34.48,129.85,129.76,10.27061713]
[1744521161407,0.05195,129.82,129.79,0.05338997]
[1744521161701,34.48,129.86,129.76,2.6831]
[1744521161905,0.05837541,129.82,129.79,0.05084879]
[1744521162300,7.7063,129.8,129.79,0.05084879]
[1744521163107,7.7059,129.81,129.79,0.05084879]
[1744521163408,0.05837541,129.82,129.79,0.05084879]
[1744521163805,7.7063,129.8,129.79,0.05084879]
[1744521164404,7.7081,129.77,129.71,38.60104046]
[1744521164705,2.6279,129.81,129.69,9.08084685]
[1744521164905,2.6279,129.81,129.68,116.35378894]
[1744521164906,2.6279,129.81,129.7,37.26]
[1744521165103,7.7082,129.77,129.71,7.7111]
[1744521165305,2.6279,129.81,129.7,37.26]
[1744521165604,0.05081212,129.77,129.74,0.05416926]
[1744521166905,0.05081212,129.77,129.74,37.33416926]
[1744521167394,0.05081212,129.77,129.74,0.05416926]
[1744521170007,7.7087,129.76,129.74,0.05416926]
[1744521170305,0.05081212,129.77,129.74,0.05416926]
[1744521170608,7.7086,129.76,129.74,0.05416926]
[1744521171113,7.7086,129.76,129.71,7.7115]
[1744521171409,10.3631,129.76,129.71,7.7115]
[1744521172401,2.6545,129.76,129.68,7.7129]
[1744521172608,2.8396,129.75,129.67,41.52]
[1744521172807,0.05753941,129.73,129.68,16.46447351]
[1744521173009,0.05753941,129.73,129.72,7.711]
[1744521173211,0.05753941,129.73,129.69,2.6521]
[1744521173713,0.05753941,129.73,129.7,2.7438]
[1744521174313,0.05753941,129.73,129.68,1.3413506]
[1744521174612,0.05753941,129.73,129.65,2.7438]
[1744521174808,16.46447351,129.77,129.65,2.7438]
[1744521175009,7.76474436,129.7,129.65,2.7438]
[1744521175316,0.05254436,129.7,129.65,2.7438]
[1744521175809,0.05254436,129.7,129.68,7.7131]
[1744521176009,0.05254436,129.7,129.65,2.7438]
[1744521176511,0.05254436,129.7,129.66,7.7145]
[1744521176709,0.05254436,129.7,129.65,2.7438]
[1744521176911,0.05254436,129.7,129.55,450.00338742]
[1744521177108,55.68,129.72,129.56,9.02435599]
[1744521177309,0.0574693,129.64,129.56,9.02435599]
[1744521177612,55.68,129.72,129.59,16.46447351]
[1744521177809,7.792e-05,129.61,129.56,9.02435599]
[1744521178010,2.8518,129.73,129.56,367.02435599]
[1744521178214,2.8518,129.73,129.6,16.46447351]
[1744521178511,2.8518,129.73,129.68,7.7133]
[1744521178910,0.05578359,129.72,129.69,0.05645132]
[1744521179114,2.8518,129.73,129.64,4.9352]
[1744521179312,0.05762383,129.72,129.69,0.05434229]
[1744521181013,0.05762383,129.72,129.52,381.01]
[1744521181014,75.38209734,129.72,129.52,381.01]
[1744521181312,2.8518,129.73,129.59,16.46447351]
[1744521181514,7.7122,129.7,129.64,7.7155]
[1744521181814,19.31627351,129.73,129.59,16.46447351]
[1744521182116,0.05857056,129.67,129.59,16.46447351]
[1744521182319,7.7123,129.7,129.57,7.6872]
[1744521182513,0.05313453,129.64,129.6,16.46447351]
[1744521182810,0.05340722,129.63,129.6,16.46447351]
[1744521183013,2.8518,129.73,129.6,16.46447351]
[1744521183319,13.16280425,129.73,129.62,10.31100425]
[1744521183511,13.16280425,129.73,129.63,58.86]
[1744521184017,0.05287281,129.69,129.67,0.05611952]
[1744521186012,0.05287281,129.69,129.67,7.76961952]
[1744521186418,0.05287281,129.69,129.67,0.05611952]
[1744521187921,0.05287281,129.69,129.68,7.7134]
[1744521188122,0.05287281,129.69,129.67,0.05611952]
[1744521188623,0.05287281,129.69,129.68,7.7134]
[1744521189420,10.31100425,129.77,129.69,7.7124]
[1744521190324,7.71,129.74,129.69,7.7124]
[1744521190525,0.05284903,129.74,129.72,0.05932292]
[1744521190725,10.31100425,129.75,129.64,2.2189]
[1744521190924,7.7104,129.73,129.72,0.05108792]
[1744521191126,5.4246,129.74,129.67,7.7136]
[1744521191429,7.7113,129.72,129.67,7.7136]
[1744521192223,0.05364276,129.71,129.68,0.04862289]
[1744521193330,0.05364276,129.71,129.68,7.76182289]
[1744521194626,0.05364276,129.71,129.68,0.04862289]
[1744521194830,10.31100425,129.7,129.63,61.5973]
[1744521195226,7.7139,129.68,129.63,66.5763]
[1744521195427,10.31100425,129.7,129.63,58.86]
[1744521195634,2.8614,129.73,129.63,58.86]
[1744521195830,7.7122,129.7,129.63,58.86]
[1744521196030,0.05699424,129.69,129.63,58.86]
[1744521197133,7.7135,129.68,129.63,58.86]
[1744521197538,0.05699424,129.69,129.64,7.7154]
[1744521197938,0.05699424,129.69,129.63,58.86]
[1744521198235,0.05699424,129.69,129.63,69.17100425]
[1744521198637,0.05699424,129.69,129.65,10.31100425]
[1744521198830,0.05699424,129.69,129.66,2.6778]
[1744521199230,0.05699424,129.69,129.68,7.7134]
[1744521199433,2.7914,129.74,129.66,5.3661]
[1744521200036,7.7114,129.72,129.67,7.7138]
[1744521200435,0.05525407,129.71,129.68,0.05807422]
[1744521201533,7.76695407,129.71,129.68,0.05807422]
[1744521202336,10.36625832,129.71,129.61,15.79]
[1744521202641,10.31100425,129.71,129.61,15.79]
[1744521202837,5.4944,129.7,129.61,15.79]
[1744521203039,5.4944,129.7,129.61,26.10100425]
[1744521203443,0.05600967,129.67,129.61,15.79]
[1744521203837,0.05600967,129.67,129.6,10.31100425]
[1744521204543,0.05600967,129.67,129.62,10.31100425]
[1744521204836,13.10240425,129.74,129.63,2.7953]
[1744521205037,13.10240425,129.74,129.61,10.31100425]
[1744521205038,10.31100425,129.72,129.61,10.31100425]
[1744521205238,0.05728037,129.7,129.63,10.31100425]
[1744521205439,13.10240425,129.74,129.64,58.86]
[1744521205636,0.05398276,129.68,129.64,58.86]
[1744521205841,0.05398276,129.68,129.67,7.714]
[1744521208145,0.05398276,129.68,129.65,10.5287]
[1744521208345,0.05398276,129.68,129.65,2.814]
[1744521209846,0.05398276,129.68,129.67,7.714]
[1744521210749,0.05398276,129.68,129.66,7.7144]
[1744521213550,0.05398276,129.68,129.61,19.28]
[1744521214049,7.76778276,129.68,129.63,7.716]
[1744521214247,0.05398276,129.68,129.61,19.28]
[1744521214549,7.7144,129.67,129.63,7.716]
[1744521215751,0.05398276,129.68,129.61,19.28]
[1744521216053,0.05648727,129.66,129.61,19.28]
[1744521216253,7.77118727,129.66,129.62,7.7167]
[1744521216751,7.77118727,129.66,129.61,19.28]
[1744521217656,0.05648727,129.66,129.63,7.716]
[1744521218155,7.7155,129.65,129.61,19.28]
[1744521218652,0.05648727,129.66,129.59,58.86]
[1744521218853,2.5952,129.68,129.61,7.7172]
[1744521219046,0.0502796,129.64,129.61,7.7172]
[1744521219750,0.0502796,129.64,129.59,58.86]
[1744521220546,0.0502796,129.64,129.61,7.717]
[1744521220753,0.0502796,129.64,129.59,58.86]
[1744521222255,0.0502796,129.64,129.62,7.7165]
[1744521222563,0.0502796,129.64,129.59,58.86]
[1744521222752,0.0502796,129.64,129.62,7.7165]
[1744521223053,0.0502796,129.64,129.59,58.86]
[1744521223456,0.0502796,129.64,129.63,7.7164]
[1744521224250,0.0502796,129.64,129.62,7.7167]
[1744521224849,0.0502796,129.64,129.58,22.1025]
[1744521225053,10.36128385,129.64,129.58,19.29]
[1744521225253,5.5539,129.63,129.58,19.29]
[1744521225959,7.7663796,129.64,129.6,7.7181]
[1744521226457,0.0502796,129.64,129.63,7.7164]
[1744521227055,0.0502796,129.64,129.59,15.74550425]
[1744521228054,0.0502796,129.64,129.63,7.7164]
[1744521229356,0.0502796,129.64,129.62,7.7168]
[1744521230554,0.0502796,129.64,129.63,7.7164]
[1744521234562,0.0502796,129.64,129.62,63.2367]
[1744521235966,0.0502796,129.64,129.58,19.29]
[1744521236165,2.8573796,129.64,129.58,19.29]
[1744521236757,7.7176,129.61,129.58,19.29]
[1744521236963,7.7176,129.61,129.53,64.17100425]
[1744521237462,0.05306451,129.58,129.53,64.17100425]
[1744521237655,0.05306451,129.58,129.56,7.7205]
[1744521237860,0.05306451,129.58,129.53,64.17100425]
[1744521238264,0.05306451,129.58,129.53,65.51403727]
[1744521238863,0.05306451,129.58,129.57,7.7199]
[1744521242062,0.05306451,129.58,129.56,7.7203]
[1744521242263,0.05306451,129.58,129.53,81.24388179]
[1744521243163,0.05306451,129.58,129.55,7.7208]
[1744521243666,0.05306451,129.58,129.56,7.7204]
[1744521243963,0.05306451,129.58,129.53,70.93287754]
[1744521244864,0.05306451,129.58,129.56,7.7203]
[1744521245565,0.05306451,129.58,129.55,7.7209]
[1744521245760,0.05306451,129.58,129.53,70.93287754]
[1744521246166,0.05306451,129.58,129.55,7.7206]
[1744521247262,0.05306451,129.58,129.56,7.7205]
[1744521247567,0.05306451,129.58,129.53,70.93287754]
[1744521247963,0.05306451,129.58,129.55,7.7208]
[1744521248364,7.77246451,129.58,129.55,7.7208]
[1744521248566,0.05306451,129.58,129.55,7.7208]
[1744521248969,0.05306451,129.58,129.56,7.7203]
[1744521249668,0.05306451,129.58,129.55,7.721]
[1744521250565,0.05306451,129.58,129.56,7.7205]
[1744521251065,0.05306451,129.58,129.53,69.59]
[1744521251369,0.05306451,129.58,129.56,7.7205]
[1744521252269,0.05306451,129.58,129.55,7.7209]
[1744521252569,0.05306451,129.58,129.53,69.59]
[1744521252869,0.05306451,129.58,129.56,7.7201]
[1744521253270,0.05306451,129.58,129.53,69.59]
[1744521253468,0.05306451,129.58,129.57,7.7199]
[1744521261673,73.98967831,129.72,129.61,7.7175]
[1744521261880,621.51100425,129.67,129.61,7.7175]
[1744521262076,10.31100425,129.67,129.61,7.7175]
[1744521262281,10.31100425,129.67,129.6,7.7179]
[1744521262780,7.7164,129.64,129.6,7.7179]
[1744521262972,0.05717147,129.65,129.62,0.05890553]
[1744521263885,7.7158,129.64,129.62,0.05890553]
[1744521264285,0.05717147,129.65,129.62,0.05890553]
[1744521264489,7.7163,129.64,129.62,0.05890553]
[1744521264686,2.6653,129.63,129.62,0.05890553]
[1744521265081,2.6653,129.63,129.58,50.84]
[1744521265384,12.97630425,129.63,129.54,19.29]
[1744521265685,7.7195,129.58,129.54,27.0116]
[1744521265986,63.79630425,129.63,129.54,19.29]
[1744521266185,0.05705414,129.57,129.54,19.29]
[1744521266486,0.05605385,129.57,129.54,19.29]
[1744521267087,0.05605385,129.57,129.56,7.7205]
[1744521268582,0.05605385,129.57,129.55,7.721]
[1744521269692,0.05605385,129.57,129.56,7.7205]
[1744521271386,0.05605385,129.57,129.56,14.32777973]
[1744521271587,7.7172,129.62,129.58,7.7188]
[1744521272388,2.6653,129.63,129.58,6.60727973]
[1744521272588,0.05573222,129.62,129.59,0.05087894]
[1744521273094,0.05573222,129.62,129.6,7.7177]
[1744521275292,0.05573222,129.62,129.61,7.7176]
[1744521278001,0.05573222,129.62,129.61,14.32487973]
[1744521278602,22.59077973,129.68,129.61,6.60727973]
[1744521278801,22.59077973,129.68,129.63,6.60727973]
[1744521279103,14.87717973,129.68,129.63,6.60727973]
[1744521279698,22.59087973,129.68,129.65,7.7149]
[1744521279903,0.05228561,129.67,129.65,7.7149]
[1744521281506,0.05228561,129.67,129.66,7.7146]
[1744521287309,0.05228561,129.67,129.64,47.93370339]
[1744521287814,7.7165,129.63,129.6,7.7178]
[1744521288116,6.60727973,129.65,129.64,15.94]
[1744521289114,14.32277973,129.65,129.64,15.94]
[1744521289315,7.7155,129.65,129.64,15.94]
[1744521290213,7.7155,129.65,129.64,7.2974]
[1744521290717,7.7155,129.65,129.64,7.13900517]
[1744521291118,7.7158,129.64,129.63,0.05581822]
[1744521291620,13.18605447,129.66,129.59,611.24]
[1744521291815,13.18605447,129.66,129.57,49.20243722]
[1744521291816,13.1340336,129.66,129.57,56.92213722]
[1744521292020,13.1340336,129.66,129.57,47.86]
[1744521292719,0.05350431,129.63,129.57,47.86]
[1744521292920,7.77010431,129.63,129.58,7.719]
[1744521294824,7.717,129.62,129.58,7.719]
[1744521295026,0.05350431,129.63,129.57,47.86]
[1744521295423,2.71340431,129.63,129.57,47.86]
[1744521296326,7.7175,129.62,129.58,7.719]
[1744521296526,2.71340431,129.63,129.57,47.86]
[1744521297329,10.43020431,129.63,129.59,7.7187]
[1744521297727,2.71340431,129.63,129.57,47.86]
[1744521298230,2.71340431,129.63,129.57,58.1785336]
[1744521298527,0.05350431,129.63,129.57,58.1785336]
[1744521298832,0.05350431,129.63,129.59,10.3185336]
[1744521300225,0.05350431,129.63,129.62,7.717]
[1744521301526,0.05350431,129.63,129.62,53.957]
[1744521301726,2.7637,129.67,129.64,7.7152]
[1744521302031,2.7637,129.67,129.62,46.24]
[1744521302328,2.8481,129.68,129.65,7.7148]
[1744521302831,0.05156183,129.68,129.65,0.05933075]